fUST/lending_fUST_20240425
["ID","MTS","AMOUNT","RATE_DAILY","PERIOD"]
[323433495,1713984684311,-2261.27,0.00018904,2]
[323433496,1713984684320,-3678.5,0.00018904,2]
[323433497,1713984684329,-1234.39,0.00018904,2]
[323433498,1713984684338,-1371.63,0.00018904,2]
[323433499,1713984684348,-6891.8,0.00018904,2]
[323433500,1713984684358,-500.0,0.00018904,2]
[323433501,1713984684368,-704.21,0.00018904,2]
[323433502,1713984684379,-500.0,0.00018904,2]
[323433503,1713984684389,-925.33,0.00018904,2]
[323433504,1713984684403,-911.08,0.00018904,2]
[323433505,1713984684413,-500.0,0.00018904,2]
[323433506,1713984684423,-741.31,0.00018904,2]
[323433507,1713984684433,-500.0,0.00018904,2]
[323433508,1713984684443,-3135.11,0.00018904,2]
[323433509,1713984684453,-2399.0,0.00018904,2]
[323433510,1713984684464,-500.0,0.00018904,2]
[323433511,1713984684473,-872.83,0.00018904,2]
[323433512,1713984684483,-500.0,0.00018904,2]
[323433513,1713984684493,-500.0,0.00018904,2]
[323433514,1713984684503,-3286.45,0.00018904,2]
[323433515,1713984684514,-612.33,0.00018904,2]
[323433516,1713984684523,-8567.18,0.00018904,2]
[323433517,1713984684533,-500.0,0.00018904,2]
[323433518,1713984684543,-1176.79,0.00018904,2]
[323433519,1713984684552,-984.91,0.00018904,2]
[323433520,1713984684562,-500.0,0.00018904,2]
[323433521,1713984684572,-500.0,0.00018904,2]
[323433522,1713984684582,-1391.58,0.00018904,2]
[323433523,1713984684592,-576.8897143,0.00018904,2]
[323433524,1713984684601,-500.0,0.00018904,2]
[323433525,1713984684611,-1326.81,0.00018904,2]
[323433526,1713984684620,-500.0,0.00018904,2]
[323433527,1713984684630,-604.22,0.00018904,2]
[323433528,1713984684640,-613.12,0.00018904,2]
[323433529,1713984684659,-2262.73,0.00018904,2]
[323433530,1713984684668,-523.92252499,0.00018904,2]
[323433531,1713984684678,-692.01,0.00018904,2]
[323433532,1713984684687,-1674.86,0.00018904,2]
[323433533,1713984684697,-500.0,0.00018904,2]
[323433534,1713984684706,-500.0,0.00018904,2]
[323433535,1713984684716,-623.72,0.00018904,2]
[323433536,1713984684725,-500.0,0.00018904,2]
[323433537,1713984684735,-623.43,0.00018904,2]
[323433538,1713984684745,-500.0,0.00018904,2]
[323433539,1713984684754,-189.19295912,0.0001897,2]
[323433540,1713984684763,-234.83249104,0.00019,2]
[323433541,1713984684772,-154.82968734,0.00019,2]
[323433542,1713984684781,-154.81422293,0.00019,2]
[323433543,1713984684790,-40001.8856888,0.00019,2]
[323433544,1713984684799,-150.0,0.0001908,2]
[323433545,1713984684809,-183.86799515,0.000191,2]
[323433546,1713984684818,-500.0,0.00019178,2]
[323433547,1713984684827,-500.0,0.00019178,2]
[323433548,1713984684836,-500.0,0.00019178,2]
[323433549,1713984684845,-500.0,0.00019178,2]
[323433550,1713984684854,-404.28005491,0.00019178,2]
[323433551,1713984684863,-500.0,0.00019178,2]
[323433552,1713984684873,-500.0,0.00019178,2]
[323433553,1713984684882,-500.0,0.00019178,2]
[323433554,1713984684891,-500.0,0.00019178,2]
[323433555,1713984684901,-500.0,0.00019178,2]
[323433556,1713984684910,-500.0,0.00019178,2]
[323433557,1713984684919,-500.0,0.00019178,2]
[323433558,1713984684928,-500.0,0.00019178,2]
[323433559,1713984684937,-500.0,0.00019178,2]
[323433560,1713984684946,-500.0,0.00019178,2]
[323433561,1713984684955,-500.0,0.00019178,2]
[323433562,1713984684965,-500.0,0.00019178,2]
[323433563,1713984684974,-500.0,0.00019178,2]
[323433564,1713984684983,-500.0,0.00019178,2]
[323433565,1713984684993,-500.0,0.00019178,2]
[323433566,1713984685002,-500.0,0.00019178,2]
[323433567,1713984685011,-500.0,0.00019178,2]
[323433568,1713984685021,-500.0,0.00019178,2]
[323433569,1713984685030,-500.0,0.00019178,2]
[323433570,1713984685039,-500.0,0.00019178,2]
[323433571,1713984685048,-500.0,0.00019178,2]
[323433572,1713984685058,-500.0,0.00019178,2]
[323433573,1713984685068,-500.0,0.00019178,2]
[323433574,1713984685077,-500.0,0.00019178,2]
[323433575,1713984685087,-500.0,0.00019178,2]
[323433576,1713984685096,-500.0,0.00019178,2]
[323433577,1713984685106,-500.0,0.00019178,2]
[323433578,1713984685115,-500.0,0.00019178,2]
[323433579,1713984685125,-500.0,0.00019178,2]
[323433580,1713984685134,-640.63933662,0.00019178,2]
[323433581,1713984685146,-499.99999999,0.00019178,2]
[323433582,1713984685156,-500.0,0.00019178,2]
[323433583,1713984685165,-500.0,0.00019178,2]
[323433584,1713984685175,-500.0,0.00019178,2]
[323433585,1713984685184,-500.0,0.00019178,2]
[323433586,1713984685194,-500.0,0.00019178,2]
[323433587,1713984685203,-500.0,0.00019178,2]
[323433588,1713984685213,-500.0,0.00019178,2]
[323433589,1713984685223,-500.0,0.00019178,2]
[323433590,1713984685232,-500.0,0.00019178,2]
[323433591,1713984685241,-500.0,0.00019178,2]
[323433592,1713984685250,-500.0,0.00019178,2]
[323433593,1713984685260,-500.0,0.00019178,2]
[323433594,1713984685269,-500.0,0.00019178,2]
[323433595,1713984685278,-500.0,0.00019178,2]
[323433596,1713984685291,-500.0,0.00019178,2]
[323433597,1713984685300,-624.48071451,0.00019178,2]
[323433598,1713984685309,-500.0,0.00019178,2]
[323433599,1713984685319,-500.0,0.00019178,2]
[323433600,1713984685329,-500.0,0.00019178,2]
[323433601,1713984685339,-500.0,0.00019178,2]
[323433602,1713984685348,-500.0,0.00019178,2]
[323433603,1713984685357,-500.0,0.00019178,2]
[323433604,1713984685367,-426.02835412,0.00019178,2]
[323433605,1713984685378,-500.0,0.00019178,2]
[323433606,1713984685387,-500.0,0.00019178,2]
[323433607,1713984685399,-500.0,0.00019178,2]
[323433608,1713984685409,-500.0,0.00019178,2]
[323433609,1713984685418,-500.0,0.00019178,2]
[323433610,1713984685428,-500.0,0.00019178,2]
[323433611,1713984685436,-500.0,0.00019178,2]
[323433612,1713984685446,-588.95603655,0.00019178,2]
[323433613,1713984685455,-500.0,0.00019178,2]
[323433614,1713984685464,-500.0,0.00019178,2]
[323433615,1713984685474,-500.0,0.00019178,2]
[323433616,1713984685483,-178.64235398,0.00019178,2]
[323433617,1713984685492,-500.0,0.00019178,2]
[323433618,1713984685502,-500.0,0.00019178,2]
[323433619,1713984685511,-500.0,0.00019178,2]
[323433620,1713984685521,-500.0,0.00019178,2]
[323433621,1713984685530,-500.0,0.00019178,2]
[323433622,1713984685540,-500.0,0.00019178,2]
[323433623,1713984685549,-500.0,0.00019178,2]
[323433624,1713984685558,-500.0,0.00019178,2]
[323433625,1713984685568,-500.0,0.00019178,2]
[323433626,1713984685577,-500.0,0.00019178,2]
[323433627,1713984685586,-500.0,0.00019178,2]
[323433628,1713984685596,-500.0,0.00019178,2]
[323433629,1713984685605,-500.0,0.00019178,2]
[323433630,1713984685615,-500.0,0.00019178,2]
[323433631,1713984685624,-500.0,0.00019178,2]
[323433632,1713984685634,-500.0,0.00019178,2]
[323433633,1713984685646,-500.0,0.00019178,2]
[323433634,1713984685656,-500.0,0.00019178,2]
[323433635,1713984685667,-500.0,0.00019178,2]
[323433636,1713984685676,-458.64345522,0.00019178,2]
[323433637,1713984685686,-500.0,0.00019178,2]
[323433638,1713984685695,-581.82676566,0.00019178,2]
[323433639,1713984685706,-500.0,0.00019178,2]
[323433640,1713984685715,-500.0,0.00019178,2]
[323433641,1713984685725,-500.0,0.00019178,2]
[323433642,1713984685735,-500.0,0.00019178,2]
[323433643,1713984685744,-311.10295455,0.00019178,2]
[323433644,1713984685753,-500.0,0.00019178,2]
[323433645,1713984685763,-500.0,0.00019178,2]
[323433646,1713984685772,-500.0,0.00019178,2]
[323433647,1713984685781,-500.0,0.00019178,2]
[323433648,1713984685791,-500.0,0.00019178,2]
[323433649,1713984685800,-500.0,0.00019178,2]
[323433650,1713984685809,-507.56110462,0.00019178,2]
[323433651,1713984685818,-500.0,0.00019178,2]
[323433652,1713984685828,-500.0,0.00019178,2]
[323433653,1713984685837,-625.0,0.00019178,2]
[323433654,1713984685846,-674.8,0.00019178,2]
[323433655,1713984685855,-500.0,0.00019178,2]
[323433656,1713984685865,-501.52756995,0.00019178,2]
[323433657,1713984685875,-585.29,0.00019178,2]
[323433658,1713984685884,-716.83,0.00019178,2]
[323433659,1713984685897,-500.0,0.00019178,2]
[323433660,1713984685907,-500.0,0.00019178,2]
[323433661,1713984685916,-500.0,0.00019178,2]
[323433662,1713984685926,-500.0,0.00019178,2]
[323433663,1713984685936,-500.0,0.00019178,2]
[323433664,1713984685945,-500.0,0.00019178,2]
[323433665,1713984685955,-560.98,0.00019178,2]
[323433666,1713984685964,-722.43,0.00019178,2]
[323433667,1713984686093,-839.18,0.00019178,2]
[323433668,1713984686103,-327.77217732,0.00019178,2]
[323433669,1713984686113,-638.7695691,0.00019178,2]
[323433670,1713984686122,-500.0,0.00019178,2]
[323433671,1713984686132,-500.0,0.00019178,2]
[323433672,1713984686142,-1155.53,0.00019178,2]
[323433673,1713984686155,-2033.21,0.00019178,2]
[323433674,1713984686164,-1717.84,0.00019178,2]
[323433675,1713984686174,-500.0,0.00019178,2]
[323433676,1713984686183,-1292.95,0.00019178,2]
[323433677,1713984686193,-629.8978296,0.00019178,2]
[323433678,1713984686203,-607.56493198,0.00019178,2]
[323433679,1713984686213,-1786.12,0.00019178,2]
[323433680,1713984686222,-1139.75,0.00019178,2]
[323433681,1713984686232,-603.4,0.00019178,2]
[323433682,1713984686242,-978.62,0.00019178,2]
[323433683,1713984686251,-500.0,0.00019178,2]
[323433684,1713984686261,-902.13,0.00019178,2]
[323433685,1713984686271,-999.37,0.00019178,2]
[323433686,1713984686281,-864.27,0.00019178,2]
[323433687,1713984686293,-789.38,0.00019178,2]
[323433688,1713984686302,-500.0,0.00019178,2]
[323433689,1713984686312,-500.0,0.00019178,2]
[323433690,1713984686321,-1005.48,0.00019178,2]
[323433691,1713984686331,-2278.55,0.00019178,2]
[323433692,1713984686340,-500.0,0.00019178,2]
[323433693,1713984686349,-708.42,0.00019178,2]
[323433694,1713984686359,-500.0,0.00019178,2]
[323433695,1713984686369,-500.0,0.00019178,2]
[323433696,1713984686380,-785.8,0.00019178,2]
[323433697,1713984686390,-695.13,0.00019178,2]
[323433698,1713984686402,-999.88,0.00019178,2]
[323433699,1713984686412,-500.0,0.00019178,2]
[323433700,1713984686421,-1909.77,0.00019178,2]
[323433701,1713984686431,-500.0,0.00019178,2]
[323433702,1713984686440,-500.0,0.00019178,2]
[323433703,1713984686450,-634.31,0.00019178,2]
[323433704,1713984686459,-500.0,0.00019178,2]
[323433705,1713984686469,-500.0,0.00019178,2]
[323433706,1713984686479,-1645.24,0.00019178,2]
[323433707,1713984686489,-500.0,0.00019178,2]
[323433708,1713984686498,-2192.71,0.00019178,2]
[323433709,1713984686508,-736.48,0.00019178,2]
[323433710,1713984686517,-691.26,0.00019178,2]
[323433711,1713984686527,-500.0,0.00019178,2]
[323433712,1713984686536,-500.0,0.00019178,2]
[323433713,1713984686546,-500.0,0.00019178,2]
[323433714,1713984686556,-500.0,0.00019178,2]
[323433715,1713984686566,-1002.4,0.00019178,2]
[323433716,1713984686576,-650.3,0.00019178,2]
[323433717,1713984686585,-1100.44,0.00019178,2]
[323433718,1713984686595,-693.43,0.00019178,2]
[323433719,1713984686606,-534.56,0.00019178,2]
[323433720,1713984686616,-500.0,0.00019178,2]
[323433721,1713984686625,-500.0,0.00019178,2]
[323433722,1713984686634,-500.0,0.00019178,2]
[323433723,1713984686646,-500.0,0.00019178,2]
[323433724,1713984686655,-1280.96,0.00019178,2]
[323433725,1713984686665,-515.07,0.00019178,2]
[323433726,1713984686674,-1572.17,0.00019178,2]
[323433727,1713984686683,-2597.28,0.00019178,2]
[323433728,1713984686693,-539.11,0.00019178,2]
[323433729,1713984686703,-1730.28,0.00019178,2]
[323433730,1713984686712,-500.0,0.00019178,2]
[323433731,1713984686722,-500.0,0.00019178,2]
[323433732,1713984686731,-553.14,0.00019178,2]
[323433733,1713984686741,-1050.14,0.00019178,2]
[323433734,1713984686750,-2490.79,0.00019178,2]
[323433735,1713984686760,-939.73,0.00019178,2]
[323433736,1713984686769,-500.0,0.00019178,2]
[323433737,1713984686779,-500.0,0.00019178,2]
[323433738,1713984686788,-1217.82,0.00019178,2]
[323433739,1713984686798,-1977.88,0.00019178,2]
[323433740,1713984686808,-979.24,0.00019178,2]
[323433741,1713984686817,-500.0,0.00019178,2]
[323433742,1713984686826,-571.61,0.00019178,2]
[323433743,1713984686836,-500.0,0.00019178,2]
[323433744,1713984686846,-500.0,0.00019178,2]
[323433745,1713984686855,-210.06726373,0.00019178,2]
[323433746,1713984686865,-420.9360159,0.00019178,2]
[323433747,1713984686875,-500.0,0.00019178,2]
[323433748,1713984686885,-267.08894892,0.00019178,2]
[323433749,1713984686897,-500.0,0.00019178,2]
[323433750,1713984686907,-1094.17,0.00019178,2]
[323433751,1713984686917,-500.0,0.00019178,2]
[323433752,1713984686926,-500.0,0.00019178,2]
[323433753,1713984686935,-500.0,0.00019178,2]
[323433754,1713984686967,-500.0,0.00019178,2]
[323433755,1713984686977,-454.14062775,0.00019178,2]
[323433756,1713984686987,-500.0,0.00019178,2]
[323433757,1713984686997,-500.0,0.00019178,2]
[323433758,1713984687007,-206.50505789,0.00019178,2]
[323433759,1713984687016,-500.0,0.00019178,2]
[323433760,1713984687025,-500.0,0.00019178,2]
[323433761,1713984687035,-500.0,0.00019178,2]
[323433762,1713984687044,-529.43170852,0.00019178,2]
[323433763,1713984687053,-500.0,0.00019178,2]
[323433764,1713984687063,-500.0,0.00019178,2]
[323433765,1713984687072,-636.16139481,0.00019178,2]
[323433766,1713984687082,-500.0,0.00019178,2]
[323433767,1713984687091,-1357.41,0.00019178,2]
[323433768,1713984687101,-1382.9,0.00019178,2]
[323433769,1713984687110,-500.0,0.00019178,2]
[323433770,1713984687120,-500.0,0.00019178,2]
[323433771,1713984687131,-584.0421608,0.00019178,2]
[323433772,1713984687140,-1158.93,0.00019178,2]
[323433773,1713984687153,-1002.6,0.00019178,2]
[323433774,1713984687162,-20762.57,0.00019178,2]
[323433775,1713984687172,-1565.04,0.00019178,2]
[323433776,1713984687182,-1005.95,0.00019178,2]
[323433777,1713984687192,-500.0,0.00019178,2]
[323433778,1713984687201,-908.92,0.00019178,2]
[323433779,1713984687211,-19373.57,0.00019178,2]
[323433780,1713984687220,-1126.69,0.00019178,2]
[323433781,1713984687229,-1323.24,0.00019178,2]
[323433782,1713984687238,-2676.08,0.00019178,2]
[323433783,1713984687247,-500.0,0.00019178,2]
[323433784,1713984687257,-541.01,0.00019178,2]
[323433785,1713984687267,-4954.95,0.00019178,2]
[323433786,1713984687277,-637.03,0.00019178,2]
[323433787,1713984687287,-806.42,0.00019178,2]
[323433788,1713984687299,-500.0,0.00019178,2]
[323433789,1713984687308,-500.0,0.00019178,2]
[323433790,1713984687318,-12995.55,0.00019178,2]
[323433791,1713984687328,-2682.8,0.00019178,2]
[323433792,1713984687339,-7231.97,0.00019178,2]
[323433793,1713984687348,-1763.41,0.00019178,2]
[323433794,1713984687358,-500.0,0.00019178,2]
[323433795,1713984687369,-500.0,0.00019178,2]
[323433796,1713984687379,-500.0,0.00019178,2]
[323433797,1713984687389,-1109.8,0.00019178,2]
[323433798,1713984687406,-703.53,0.00019178,2]
[323433799,1713984687416,-1396.91,0.00019178,2]
[323433800,1713984687426,-500.0,0.00019178,2]
[323433801,1713984687436,-1419.45,0.00019178,2]
[323433802,1713984687446,-7041.65,0.00019178,2]
[323433803,1713984687455,-502.38191079,0.00019178,2]
[323433804,1713984687465,-8055.98,0.00019178,2]
[323433805,1713984687474,-10090.6,0.00019178,2]
[323433806,1713984687483,-522.15,0.00019178,2]
[323433807,1713984687492,-155.40517086,0.00019178,2]
[323433808,1713984687502,-500.0,0.00019178,2]
[323433809,1713984687512,-2812.39,0.00019178,2]
[323433810,1713984687522,-2812.39,0.00019178,2]
[323433811,1713984687532,-2812.39,0.00019178,2]
[323433812,1713984687541,-2812.39,0.00019178,2]
[323433813,1713984687551,-707.89,0.00019178,2]
[323433814,1713984687560,-2812.39,0.00019178,2]
[323433815,1713984687570,-578.32583097,0.00019178,2]
[323433816,1713984687580,-2812.39,0.00019178,2]
[323433817,1713984687589,-500.0,0.00019178,2]
[323433818,1713984687599,-2812.39,0.00019178,2]
[323433819,1713984687609,-2812.39,0.00019178,2]
[323433820,1713984687618,-2812.39,0.00019178,2]
[323433821,1713984687628,-2261.27,0.00019178,2]
[323433822,1713984687638,-2812.39,0.00019178,2]
[323433823,1713984687652,-2812.39,0.00019178,2]
[323433824,1713984687661,-1234.39,0.00019178,2]
[323433825,1713984687670,-3678.5,0.00019178,2]
[323433826,1713984687679,-1371.63,0.00019178,2]
[323433827,1713984687690,-6891.8,0.00019178,2]
[323433828,1713984687700,-500.0,0.00019178,2]
[323433829,1713984687709,-704.21,0.00019178,2]
[323433830,1713984687718,-455.06703559,0.00019178,2]
[323433831,1713984687728,-925.33,0.00019178,2]
[323433832,1713984687738,-911.08,0.00019178,2]
[323433833,1713984687748,-536.27394151,0.00019178,2]
[323433834,1713984687757,-741.31,0.00019178,2]
[323433835,1713984687767,-500.0,0.00019178,2]
[323433836,1713984687776,-3135.11,0.00019178,2]
[323433837,1713984687785,-2399.0,0.00019178,2]
[323433838,1713984687794,-500.0,0.00019178,2]
[323433839,1713984687804,-872.83,0.00019178,2]
[323433840,1713984687814,-500.0,0.00019178,2]
[323433841,1713984687823,-500.0,0.00019178,2]
[323433842,1713984687833,-3286.45,0.00019178,2]
[323433843,1713984687843,-612.33,0.00019178,2]
[323433844,1713984687853,-8567.18,0.00019178,2]
[323433845,1713984687862,-500.0,0.00019178,2]
[323433846,1713984687872,-1176.79,0.00019178,2]
[323433847,1713984687881,-984.91,0.00019178,2]
[323433848,1713984687890,-500.0,0.00019178,2]
[323433849,1713984687904,-500.0,0.00019178,2]
[323433850,1713984687913,-1391.58,0.00019178,2]
[323433851,1713984687922,-1326.81,0.00019178,2]
[323433852,1713984687931,-500.0,0.00019178,2]
[323433853,1713984687940,-500.0,0.00019178,2]
[323433854,1713984687950,-604.22,0.00019178,2]
[323433855,1713984687959,-613.12,0.00019178,2]
[323433856,1713984687968,-2262.73,0.00019178,2]
[323433857,1713984687977,-692.01,0.00019178,2]
[323433858,1713984687986,-1674.86,0.00019178,2]
[323433859,1713984687995,-500.0,0.00019178,2]
[323433860,1713984688005,-500.0,0.00019178,2]
[323433861,1713984688014,-623.72,0.00019178,2]
[323433862,1713984688024,-500.0,0.00019178,2]
[323433863,1713984688033,-623.43,0.00019178,2]
[323433864,1713984688043,-500.0,0.00019178,2]
[323433865,1713984688052,-159.069553,0.00019178,2]
[323433866,1713984688062,-1442.437829,0.00019178,2]
[323433867,1713984688072,-1442.437829,0.00019178,2]
[323433868,1713984688082,-1442.437829,0.00019178,2]
[323433869,1713984688093,-1442.437829,0.00019178,2]
[323433870,1713984688103,-1442.437829,0.00019178,2]
[323433871,1713984688113,-1442.437829,0.00019178,2]
[323433872,1713984688123,-1442.437829,0.00019178,2]
[323433873,1713984688132,-1442.437829,0.00019178,2]
[323433874,1713984688142,-1442.437829,0.00019178,2]
[323433875,1713984688155,-1442.437829,0.00019178,2]
[323433876,1713984688164,-1442.437829,0.00019178,2]
[323433877,1713984688173,-1442.437829,0.00019178,2]
[323433878,1713984688183,-1442.437829,0.00019178,2]
[323433879,1713984688193,-1442.437829,0.00019178,2]
[323433880,1713984688203,-1442.437829,0.00019178,2]
[323433881,1713984688213,-1442.437829,0.00019178,2]
[323433882,1713984688222,-1442.437829,0.00019178,2]
[323433883,1713984688232,-1442.437829,0.00019178,2]
[323433884,1713984688242,-1442.437829,0.00019178,2]
[323433885,1713984688251,-1442.437825,0.00019178,2]
[323433886,1713984688260,-167.451484,0.00019178,2]
[323433887,1713984688269,-400.0,0.00019178,2]
[323433888,1713984688278,-620.0000073,0.00019259,2]
[323433889,1713984688289,-500.0,0.00019452,2]
[323433890,1713984688299,-500.0,0.00019452,2]
[323433891,1713984688309,-625.0,0.00019452,2]
[323433892,1713984688319,-674.8,0.00019452,2]
[323433893,1713984688329,-500.0,0.00019452,2]
[323433894,1713984688338,-585.29,0.00019452,2]
[323433895,1713984688347,-716.83,0.00019452,2]
[323433896,1713984688357,-500.0,0.00019452,2]
[323433897,1713984688367,-500.0,0.00019452,2]
[323433898,1713984688376,-500.0,0.00019452,2]
[323433899,1713984688386,-500.0,0.00019452,2]
[323433900,1713984688395,-500.0,0.00019452,2]
[323433901,1713984688409,-500.0,0.00019452,2]
[323433902,1713984688419,-560.98,0.00019452,2]
[323433903,1713984688429,-722.43,0.00019452,2]
[323433904,1713984688440,-839.18,0.00019452,2]
[323433905,1713984688449,-500.0,0.00019452,2]
[323433906,1713984688460,-500.0,0.00019452,2]
[323433907,1713984688470,-1155.53,0.00019452,2]
[323433908,1713984688480,-2033.21,0.00019452,2]
[323433909,1713984688492,-1717.84,0.00019452,2]
[323433910,1713984688504,-500.0,0.00019452,2]
[323433911,1713984688514,-1292.95,0.00019452,2]
[323433912,1713984688524,-1786.12,0.00019452,2]
[323433913,1713984688535,-1139.75,0.00019452,2]
[323433914,1713984688544,-603.4,0.00019452,2]
[323433915,1713984688555,-978.62,0.00019452,2]
[323433916,1713984688566,-500.0,0.00019452,2]
[323433917,1713984688575,-902.13,0.00019452,2]
[323433918,1713984688585,-999.37,0.00019452,2]
[323433919,1713984688594,-789.38,0.00019452,2]
[323433920,1713984688604,-864.27,0.00019452,2]
[323433921,1713984688614,-500.0,0.00019452,2]
[323433922,1713984688624,-500.0,0.00019452,2]
[323433923,1713984688633,-1005.48,0.00019452,2]
[323433924,1713984688643,-2278.55,0.00019452,2]
[323433925,1713984688658,-500.0,0.00019452,2]
[323433926,1713984688667,-708.42,0.00019452,2]
[323433927,1713984688677,-500.0,0.00019452,2]
[323433928,1713984688687,-500.0,0.00019452,2]
[323433929,1713984688697,-785.8,0.00019452,2]
[323433930,1713984688707,-695.13,0.00019452,2]
[323433931,1713984688717,-999.88,0.00019452,2]
[323433932,1713984688727,-500.0,0.00019452,2]
[323433933,1713984688736,-1909.77,0.00019452,2]
[323433934,1713984688746,-500.0,0.00019452,2]
[323433935,1713984688756,-500.0,0.00019452,2]
[323433936,1713984688766,-634.31,0.00019452,2]
[323433937,1713984688776,-500.0,0.00019452,2]
[323433938,1713984688785,-500.0,0.00019452,2]
[323433939,1713984688796,-1645.24,0.00019452,2]
[323433940,1713984688806,-500.0,0.00019452,2]
[323433941,1713984688816,-2192.71,0.00019452,2]
[323433942,1713984688826,-736.48,0.00019452,2]
[323433943,1713984688836,-691.26,0.00019452,2]
[323433944,1713984688847,-500.0,0.00019452,2]
[323433945,1713984688856,-500.0,0.00019452,2]
[323433946,1713984688866,-500.0,0.00019452,2]
[323433947,1713984688877,-237.07342474,0.00019452,2]
[323433948,1713984688887,-1002.4,0.00019452,2]
[323433949,1713984688898,-650.3,0.00019452,2]
[323433950,1713984688910,-1100.44,0.00019452,2]
[323433951,1713984688920,-693.43,0.00019452,2]
[323433952,1713984688929,-534.56,0.00019452,2]
[323433953,1713984688938,-500.0,0.00019452,2]
[323433954,1713984688947,-500.0,0.00019452,2]
[323433955,1713984688957,-500.0,0.00019452,2]
[323433956,1713984688972,-500.0,0.00019452,2]
[323433957,1713984688981,-1280.96,0.00019452,2]
[323433958,1713984688990,-515.07,0.00019452,2]
[323433959,1713984689000,-1572.17,0.00019452,2]
[323433960,1713984689010,-2597.28,0.00019452,2]
[323433961,1713984689019,-539.11,0.00019452,2]
[323433962,1713984689029,-1730.28,0.00019452,2]
[323433963,1713984689038,-500.0,0.00019452,2]
[323433964,1713984689047,-500.0,0.00019452,2]
[323433965,1713984689057,-553.14,0.00019452,2]
[323433966,1713984689067,-1050.14,0.00019452,2]
[323433967,1713984689077,-2490.79,0.00019452,2]
[323433968,1713984689086,-939.73,0.00019452,2]
[323433969,1713984689096,-500.0,0.00019452,2]
[323433970,1713984689105,-500.0,0.00019452,2]
[323433971,1713984689114,-1217.82,0.00019452,2]
[323433972,1713984689123,-1977.88,0.00019452,2]
[323433973,1713984689132,-979.24,0.00019452,2]
[323433974,1713984689142,-500.0,0.00019452,2]
[323433975,1713984689154,-571.61,0.00019452,2]
[323433976,1713984689164,-1094.17,0.00019452,2]
[323433977,1713984689174,-500.0,0.00019452,2]
[323433978,1713984689183,-1357.41,0.00019452,2]
[323433979,1713984689192,-1382.9,0.00019452,2]
[323433980,1713984689201,-1158.93,0.00019452,2]
[323433981,1713984689210,-1002.6,0.00019452,2]
[323433982,1713984689220,-20762.57,0.00019452,2]
[323433983,1713984689229,-1565.04,0.00019452,2]
[323433984,1713984689238,-1005.95,0.00019452,2]
[323433985,1713984689248,-399.84654361,0.00019452,2]
[323433986,1713984689257,-908.92,0.00019452,2]
[323433987,1713984689270,-19373.57,0.00019452,2]
[323433988,1713984689281,-1126.69,0.00019452,2]
[323433989,1713984689292,-1323.24,0.00019452,2]
[323433990,1713984689301,-2676.08,0.00019452,2]
[323433991,1713984689311,-586.97973194,0.00019452,2]
[323433992,1713984689320,-541.01,0.00019452,2]
[323433993,1713984689330,-4954.95,0.00019452,2]
[323433994,1713984689339,-637.03,0.00019452,2]